fUST/lending_fUST_20250815
["ID","MTS","AMOUNT","RATE_DAILY","PERIOD"]
[379340019,1755258647928,-200.0,0.00019473,10]
[379340021,1755258647937,-200.0,0.00019473,10]
[379340023,1755258647947,-204.898523,0.00019473,10]
[379340025,1755258647955,-21332.20408918,0.00019473,2]
[379340027,1755258647965,-151.0,0.000195,2]
[379340029,1755258647974,-206.91517266,0.00019525,2]
[379340030,1755258647983,-327.84047193,0.00019537,2]
[379340032,1755258647992,-370000.0,0.00019537,2]
[379340034,1755258648002,-500.0,0.00019573,2]
[379340036,1755258648011,-500.0,0.00019573,2]
[379340038,1755258648020,-500.0,0.00019573,2]
[379340040,1755258648029,-626.05963948,0.00019573,2]
[379340042,1755258648039,-500.0,0.00019573,2]
[379340044,1755258648048,-263.34307843,0.00019573,2]
[379340046,1755258648058,-500.0,0.00019573,2]
[379340048,1755258648067,-500.0,0.00019573,2]
[379340050,1755258648077,-500.0,0.00019573,2]
[379340052,1755258648086,-500.0,0.00019573,2]
[379340054,1755258648095,-500.0,0.00019573,2]
[379340056,1755258648105,-500.0,0.00019573,2]
[379340058,1755258648114,-500.0,0.00019573,2]
[379340060,1755258648124,-394.78644593,0.00019573,2]
[379340062,1755258648133,-500.0,0.00019573,2]
[379340064,1755258648144,-307.59546635,0.00019573,2]
[379340066,1755258648153,-500.0,0.00019573,2]
[379340068,1755258648163,-501.19436436,0.00019573,2]
[379340070,1755258648173,-500.0,0.00019573,2]
[379340072,1755258648183,-500.37261775,0.00019573,2]
[379340074,1755258648192,-500.98423419,0.00019573,2]
[379340076,1755258648202,-500.0,0.00019573,2]
[379340078,1755258648212,-500.0,0.00019573,2]
[379340080,1755258648221,-500.0,0.00019573,2]
[379340082,1755258648231,-500.0,0.00019573,2]
[379340084,1755258648241,-500.0,0.00019573,2]
[379340086,1755258648251,-500.0,0.00019573,2]
[379340087,1755258648260,-500.0,0.00019573,2]
[379340089,1755258648270,-501.12416989,0.00019573,2]
[379340091,1755258648279,-211.74076198,0.00019573,2]
[379340093,1755258648289,-500.0,0.00019573,2]
[379340095,1755258648298,-500.0,0.00019573,2]
[379340097,1755258648308,-501.11052222,0.00019573,2]
[379340099,1755258648318,-460.0,0.00019627,2]
[379340101,1755258648328,-460.0,0.00019627,2]
[379340103,1755258648338,-577.30425618,0.00019628,2]
[379340105,1755258648349,-460.0,0.00019628,2]
[379340107,1755258648359,-460.0,0.00019629,2]
[379340109,1755258648368,-246.58,0.00019629,2]
[379340111,1755258648379,-460.0,0.00019629,2]
[379340113,1755258648388,-460.0,0.00019629,2]
[379340115,1755258648398,-460.0,0.00019629,2]
[379340117,1755258648407,-460.0,0.00019629,2]
[379340119,1755258648418,-245.74,0.00019629,2]
[379340121,1755258648428,-460.0,0.00019629,2]
[379340123,1755258648437,-460.0,0.00019629,2]
[379340125,1755258648447,-460.0,0.00019629,2]
[379340127,1755258648456,-460.0,0.00019629,2]
[379340129,1755258648465,-620.01,0.00019629,2]
[379340131,1755258648475,-270.96,0.00019629,2]
[379340133,1755258648484,-460.0,0.00019629,2]
[379340135,1755258648494,-460.0,0.00019629,2]
[379340137,1755258648503,-501.74,0.0001963,2]
[379340139,1755258648513,-460.0,0.0001963,2]
[379340141,1755258648522,-460.0,0.0001963,2]
[379340143,1755258648532,-460.0,0.0001963,2]
[379340145,1755258648541,-460.0,0.0001963,2]
[379340147,1755258648551,-460.0,0.0001963,2]
[379340149,1755258648560,-538.46,0.0001963,2]
[379340151,1755258648569,-460.0,0.0001963,2]
[379340153,1755258648579,-460.0,0.0001963,2]
[379340155,1755258648589,-460.0,0.0001963,2]
[379340157,1755258648599,-460.0,0.0001963,2]
[379340159,1755258648608,-460.0,0.00019631,2]
[379340161,1755258648618,-460.0,0.00019631,2]
[379340162,1755258648627,-460.0,0.00019631,2]
[379340164,1755258648637,-327.73635601,0.00019631,2]
[379340166,1755258648647,-460.0,0.00019631,2]
[379340168,1755258648656,-460.0,0.00019631,2]
[379340170,1755258648666,-460.0,0.00019631,2]
[379340172,1755258648675,-460.0,0.00019631,2]
[379340174,1755258648685,-470.58586369,0.00019631,2]
[379340176,1755258648695,-460.0,0.00019631,2]
[379340178,1755258648704,-460.0,0.00019631,2]
[379340180,1755258648714,-245.79239721,0.00019631,2]
[379340182,1755258648723,-460.0,0.00019631,2]
[379340184,1755258648732,-460.0,0.00019631,2]
[379340186,1755258648741,-460.0,0.00019631,2]
[379340188,1755258648751,-1167.09,0.00019631,2]
[379340190,1755258648761,-460.0,0.00019631,2]
[379340192,1755258648770,-460.0,0.00019631,2]
[379340194,1755258648780,-460.0,0.00019631,2]
[379340196,1755258648789,-460.0,0.00019631,2]
[379340198,1755258648798,-460.0,0.00019631,2]
[379340200,1755258648807,-500.0,0.00019633,2]
[379340202,1755258648816,-460.0,0.00019633,2]
[379340204,1755258648826,-460.0,0.00019633,2]
[379340206,1755258648835,-460.0,0.00019633,2]
[379340208,1755258648844,-460.0,0.00019633,2]
[379340210,1755258648853,-460.0,0.00019633,2]
[379340212,1755258648863,-364.84304377,0.00019633,2]
[379340214,1755258648872,-460.0,0.00019633,2]
[379340216,1755258648882,-460.0,0.00019633,2]
[379340218,1755258648891,-460.0,0.00019633,2]
[379340220,1755258648901,-460.0,0.00019633,2]
[379340222,1755258648910,-460.0,0.00019633,2]
[379340223,1755258648920,-460.0,0.00019633,2]
[379340225,1755258648929,-460.0,0.00019633,2]
[379340227,1755258648938,-567.1,0.00019633,2]
[379340229,1755258648947,-460.0,0.00019633,2]
[379340231,1755258648957,-460.0,0.00019633,2]
[379340233,1755258648966,-205.80842432,0.00019633,2]
[379340448,1755258651469,2214.57,4.2e-05,2]
[379340478,1755258651741,2214.57,4.328e-05,2]
[379340559,1755258652636,2214.57,4.456e-05,2]
[379340594,1755258652956,1309.52864641,4.584e-05,2]
[379340598,1755258652984,905.04135359,4.584e-05,2]
[379340629,1755258653286,2214.57,4.712e-05,2]
[379340657,1755258653549,2214.57,4.84e-05,2]
[379340693,1755258653887,2214.57,4.968e-05,2]
[379345391,1755259637131,-361.56773111,0.00017328,2]
[379345392,1755259637159,-1379.02101928,0.00017503,2]
[379345402,1755259709258,18043.93,0.00028455,60]
[379345409,1755259751568,-2025.83617798,0.00017938,2]
[379345410,1755259752505,-120.20223726,0.00017938,2]
[379345411,1755259752525,-180.21299072,0.00018119,2]
[379345412,1755259752544,-180.2129907,0.0001812,2]
[379345413,1755259752564,-180.2129907,0.00018121,2]
[379345414,1755259752584,-180.2129907,0.00018122,2]
[379345415,1755259752603,-300.0,0.00018219,2]
[379345416,1755259752624,-300.0,0.00018219,2]
[379345417,1755259752648,-609.47591025,0.0001822,2]
[379345418,1755259772103,-590.52408975,0.0001822,2]
[379345419,1755259772124,-1200.0,0.0001822,2]
[379345420,1755259772145,-500.0,0.0001822,2]
[379345421,1755259772166,-325.7736861,0.0001822,2]
[379345422,1755259772189,-500.0,0.0001822,2]
[379345423,1755259772210,-293.72319574,0.0001822,2]
[379345424,1755259772236,-500.0,0.0001822,2]
[379345425,1755259772260,-651.87144249,0.0001822,2]
[379345426,1755259772281,-544.79679213,0.0001822,2]
[379345427,1755259772302,-196.13935789,0.0001822,2]
[379345428,1755259772324,-216.0,0.00018221,2]
[379345429,1755259772344,-300.0,0.00018221,2]
[379345430,1755259772364,-300.0,0.00018221,2]
[379345431,1755259772385,-300.0,0.00018221,2]
[379345432,1755259772405,-50000.0,0.00018221,2]
[379345433,1755259772426,-6328.8399422,0.00018222,2]
[379345434,1755259772447,-389.48952476,0.000184,2]
[379345435,1755259772466,-1000.0,0.000185,2]
[379345436,1755259772488,-1000.0,0.000185,2]
[379345437,1755259772512,-188.14083896,0.00018584,20]
[379345485,1755259832343,-11.85916104,0.00018584,20]
[379345488,1755259832352,-200.0,0.00018584,20]
[379345492,1755259832362,-200.0,0.00018584,20]
[379345493,1755259832372,-200.0,0.00018584,20]
[379345496,1755259832381,-200.0,0.00018584,20]
[379345498,1755259832391,-200.0,0.00018584,20]
[379345501,1755259832401,-389.48952476,0.00018751,2]
[379345503,1755259832410,-389.48952476,0.00019102,2]
[379345505,1755259832420,-1092.63464456,0.00019176,2]
[379345508,1755259832431,-107.36535544,0.00019176,2]
[379345510,1755259832441,-300.0,0.00019177,2]
[379345512,1755259832450,-21.77464456,0.00019177,2]
[379345514,1755259832461,-278.22535544,0.00019177,2]
[379345516,1755259832472,-300.0,0.00019177,2]
[379345519,1755259832486,-300.0,0.00019177,2]
[379345521,1755259832496,-460.0,0.00019178,2]
[379345523,1755259832505,-460.0,0.00019178,2]
[379345525,1755259832514,-460.0,0.00019178,2]
[379345527,1755259832523,-313.57,0.00019178,2]
[379345529,1755259832532,-497.36142895,0.00019178,2]
[379345531,1755259832542,-460.0,0.00019178,2]
[379345533,1755259832551,-568.34,0.00019178,2]
[379345547,1755259832658,-460.0,0.00019178,2]
[379345550,1755259832705,-460.0,0.00019178,2]
[379345552,1755259832715,-460.0,0.00019178,2]
[379345555,1755259832725,-154.49614219,0.000192,2]
[379345556,1755259832735,-154.49614219,0.0001925,2]
[379345558,1755259832744,-460.0,0.00019349,2]
[379345560,1755259832753,-460.0,0.00019349,2]
[379345562,1755259832764,-286.3,0.00019349,2]
[379345564,1755259832774,-460.0,0.00019349,2]
[379345566,1755259832783,-208.62,0.00019349,2]
[379345568,1755259832796,-233.18,0.00019349,2]
[379345571,1755259832807,-460.0,0.00019349,2]
[379345573,1755259832816,-187.42,0.00019349,2]
[379345575,1755259832826,-467.55597581,0.00019349,2]
[379345577,1755259832835,-460.0,0.00019349,2]
[379345579,1755259832844,-460.0,0.00019349,2]
[379345581,1755259832853,-460.0,0.00019349,2]
[379345582,1755259832863,-460.0,0.00019349,2]
[379345584,1755259832873,-460.0,0.00019349,2]
[379345587,1755259832883,-1069.83,0.00019349,2]
[379345589,1755259832892,-460.0,0.00019353,2]
[379345591,1755259832901,-460.0,0.00019353,2]
[379345592,1755259832911,-460.0,0.00019353,2]
[379345595,1755259832920,-460.0,0.00019353,2]
[379345596,1755259832930,-460.0,0.00019353,2]
[379345599,1755259832940,-460.0,0.00019353,2]
[379345600,1755259832949,-460.0,0.00019353,2]
[379345602,1755259832958,-460.0,0.00019353,2]
[379345604,1755259832969,-357.16,0.00019353,2]
[379345607,1755259832979,-515.34,0.00019353,2]
[379345608,1755259832989,-460.0,0.00019353,2]
[379345611,1755259833000,-460.0,0.00019353,2]
[379345615,1755259833010,-460.0,0.00019353,2]
[379345618,1755259833019,-460.0,0.00019353,2]
[379345620,1755259833028,-460.0,0.00019353,2]
[379345622,1755259833038,-460.0,0.00019353,2]
[379345625,1755259833048,-460.0,0.00019353,2]
[379345627,1755259833057,-460.0,0.00019353,2]
[379345630,1755259833067,-460.0,0.00019353,2]
[379345631,1755259833077,-314.92196421,0.00019353,2]
[379345634,1755259833087,-547.4,0.00019353,2]
[379345636,1755259833096,-460.0,0.00019353,2]
[379345638,1755259833106,-460.0,0.00019353,2]
[379345640,1755259833116,-460.0,0.00019354,2]
[379345642,1755259833125,-460.0,0.00019354,2]
[379345643,1755259833134,-460.0,0.00019354,2]
[379345645,1755259833144,-460.0,0.00019354,2]
[379345647,1755259833154,-460.0,0.00019354,2]
[379345649,1755259833163,-460.0,0.00019354,2]
[379345651,1755259833173,-460.0,0.00019354,2]
[379345653,1755259833183,-460.0,0.00019354,2]
[379345655,1755259833196,-460.0,0.00019354,2]
[379345657,1755259833209,-571.55534114,0.00019354,2]
[379345659,1755259833219,-460.0,0.00019354,2]
[379345661,1755259833228,-428.40297621,0.00019354,2]
[379345663,1755259833237,-460.0,0.00019354,2]
[379345665,1755259833247,-463.16057332,0.00019354,2]
[379345667,1755259833257,-463.66038074,0.00019354,2]
[379345669,1755259833268,-426.48246694,0.00019354,2]
[379345671,1755259833277,-528.69158621,0.00019354,2]
[379345673,1755259833287,-460.0,0.00019354,2]
[379345675,1755259833296,-408.93865679,0.00019354,2]
[379345677,1755259833306,-460.0,0.00019354,2]
[379345679,1755259833316,-464.7755459,0.00019354,2]
[379345682,1755259833325,-460.0,0.00019354,2]
[379345683,1755259833335,-465.46100751,0.00019354,2]
[379345686,1755259833345,-460.0,0.00019354,2]
[379345687,1755259833354,-460.0,0.00019354,2]
[379345689,1755259833364,-460.0,0.00019354,2]
[379345691,1755259833373,-460.0,0.00019354,2]
[379345693,1755259833384,-464.24593285,0.00019354,2]
[379345695,1755259833395,-460.0,0.00019354,2]
[379345698,1755259833406,-460.0,0.00019354,2]
[379345699,1755259833415,-464.1311977,0.00019354,2]
[379345701,1755259833424,-407.69759106,0.00019354,2]
[379345703,1755259833434,-465.54314141,0.00019354,2]
[379345705,1755259833443,-460.0,0.00019354,2]
[379345707,1755259833453,-465.34736241,0.00019354,2]
[379345709,1755259833463,-460.0,0.00019354,2]
[379345711,1755259833473,-464.95425649,0.00019354,2]
[379345713,1755259833482,-463.42584502,0.00019354,2]
[379345715,1755259833492,-461.4258735,0.00019354,2]
[379345717,1755259833502,-460.0,0.00019354,2]
[379345720,1755259833512,-1011.15210365,0.00019354,2]
[379345721,1755259833521,-460.0,0.00019354,2]
[379345724,1755259833531,-461.76245869,0.00019354,2]
[379345726,1755259833541,-460.0,0.00019354,2]
[379345728,1755259833551,-583.87559494,0.00019354,2]
[379345730,1755259833560,-463.7389508,0.00019354,2]
[379345732,1755259833570,-460.0,0.00019354,2]
[379345734,1755259833579,-462.16679956,0.00019354,2]
[379345736,1755259833589,-460.0,0.00019354,2]
[379345737,1755259833599,-460.0,0.00019354,2]
[379345740,1755259833609,-460.0,0.00019354,2]
[379345742,1755259833619,-460.0,0.00019355,2]
[379345744,1755259833629,-460.0,0.00019355,2]
[379345746,1755259833639,-460.0,0.00019355,2]
[379345748,1755259833650,-460.0,0.00019355,2]
[379345750,1755259833668,-460.0,0.00019355,2]
[379345752,1755259833678,-597.22,0.00019355,2]
[379345754,1755259833690,-460.0,0.00019355,2]
[379345756,1755259833700,-460.0,0.00019355,2]
[379345758,1755259833711,-2423.95,0.00019355,2]
[379345760,1755259833720,-1040.49,0.00019355,2]
[379345761,1755259833733,-460.0,0.00019355,2]
[379345763,1755259833744,-460.0,0.00019355,2]
[379345765,1755259833754,-500.0,0.00019355,2]
[379345767,1755259833764,-1414.30052758,0.00019355,2]
[379345769,1755259833773,-1414.30052758,0.00019355,2]
[379345771,1755259833783,-1414.30052758,0.00019355,2]
[379345773,1755259833792,-1414.30052758,0.00019355,2]
[379345775,1755259833802,-500.0,0.00019355,2]
[379345777,1755259833811,-392.72368912,0.00019355,2]
[379345779,1755259833820,-460.0,0.00019356,2]
[379345781,1755259833830,-465.19869246,0.00019356,2]
[379345783,1755259833839,-460.0,0.00019356,2]
[379345785,1755259833849,-460.0,0.00019356,2]
[379345787,1755259833859,-460.0,0.00019356,2]
[379345789,1755259833868,-460.0,0.00019356,2]
[379345791,1755259833878,-460.0,0.00019356,2]
[379345793,1755259833887,-462.27799973,0.00019356,2]
[379345795,1755259833896,-463.81385654,0.00019356,2]
[379345797,1755259833905,-710.37,0.00019356,2]
[379345799,1755259833914,-463.51819609,0.00019356,2]
[379345801,1755259833923,-463.63823444,0.00019356,2]
[379345803,1755259833932,-464.53280323,0.00019356,2]
[379345805,1755259833942,-464.65338851,0.00019356,2]
[379345807,1755259833951,-464.09872347,0.00019356,2]
[379345809,1755259833960,-460.0,0.00019356,2]
[379345811,1755259833970,-460.0,0.00019356,2]
[379345813,1755259833979,-468.5671293,0.00019356,2]
[379345815,1755259833989,-463.29666453,0.00019356,2]
[379345817,1755259833999,-645.62,0.00019356,2]
[379345819,1755259834008,-460.0,0.00019356,2]
[379345821,1755259834018,-460.0,0.00019356,2]
[379345823,1755259834027,-460.0,0.00019356,2]
[379345825,1755259834038,-460.0,0.00019356,2]
[379345827,1755259834049,-460.0,0.00019356,2]
[379345829,1755259834058,-460.0,0.00019356,2]
[379345830,1755259834067,-465.60707221,0.00019356,2]
[379345831,1755259834077,-463.01469028,0.00019356,2]
[379345832,1755259834086,-460.0,0.00019356,2]
[379345833,1755259834095,-461.71480377,0.00019357,2]
[379345834,1755259834104,-504.48346742,0.00019357,2]
[379345835,1755259834113,-460.0,0.00019357,2]
[379345836,1755259834122,-460.0,0.00019357,2]
[379345837,1755259834132,-460.0,0.00019357,2]
[379345838,1755259834141,-460.0,0.00019357,2]
[379345839,1755259834151,-460.0,0.00019357,2]
[379345840,1755259834161,-228.18572567,0.00019359,2]
[379345841,1755259834171,-460.0,0.00019359,2]
[379345842,1755259834181,-460.0,0.00019359,2]
[379345843,1755259834191,-460.0,0.00019359,2]
[379345844,1755259834201,-460.0,0.00019359,2]
[379345845,1755259834210,-460.0,0.00019359,2]
[379345846,1755259834220,-461.60215222,0.00019359,2]
[379345847,1755259834230,-463.66434487,0.00019359,2]
[379345849,1755259834240,-460.0,0.00019359,2]
[379345850,1755259834249,-463.43153687,0.00019359,2]
[379345851,1755259834259,-461.48136887,0.00019359,2]
[379345853,1755259834268,-461.63860075,0.00019359,2]
[379345855,1755259834278,-460.0,0.00019359,2]
[379345857,1755259834287,-500.0,0.00019362,2]
[379345859,1755259834297,-460.0,0.00019452,2]
[379345861,1755259834307,-460.0,0.00019452,2]
[379345863,1755259834316,-460.0,0.00019452,2]
[379345865,1755259834325,-460.0,0.00019452,2]
[379345867,1755259834336,-568.34,0.00019452,2]
[379345869,1755259834345,-207.48,0.00019452,2]
[379345871,1755259834355,-460.0,0.00019452,2]
[379345873,1755259834364,-460.0,0.00019452,2]
[379345875,1755259834373,-389.48952476,0.00019453,2]
[379345877,1755259834385,-1000.0,0.00019536,2]
[379345879,1755259834394,-1000.0,0.00019536,2]
[379345881,1755259834405,-1000.0,0.00019536,2]
[379345883,1755259834416,-1000.0,0.00019536,2]
[379345885,1755259834426,-1000.0,0.00019536,2]
[379345887,1755259834437,-1000.0,0.00019536,2]
[379345889,1755259834447,-1000.0,0.00019536,2]
[379345891,1755259834457,-1000.0,0.00019536,2]
[379345893,1755259834466,-1000.0,0.00019536,2]
[379345895,1755259834476,-1000.0,0.00019536,2]
[379345897,1755259834485,-1000.0,0.00019536,2]
[379345899,1755259834495,-376.27,0.0001955,2]
[379345901,1755259834504,-883.67,0.00019563,3]
[379345903,1755259834515,-441.84,0.00019563,3]
[379345905,1755259834524,-500.0,0.00019573,2]
[379345907,1755259834534,-292.66523945,0.00019573,2]
[379345909,1755259834544,-500.0,0.00019573,2]
[379345911,1755259834553,-500.0,0.00019573,2]
[379345913,1755259834562,-260.50182072,0.00019573,2]
[379345915,1755259834571,-500.00946688,0.00019573,2]
[379345917,1755259834581,-500.0,0.00019573,2]
[379345919,1755259834590,-500.0,0.00019573,2]
[379345921,1755259834599,-500.0,0.00019573,2]
[379345923,1755259834609,-500.0,0.00019573,2]
[379345925,1755259834618,-500.0,0.00019573,2]
[379345927,1755259834627,-500.0,0.00019573,2]
[379345929,1755259834637,-501.73754894,0.00019573,2]
[379345931,1755259834646,-501.874881,0.00019573,2]
[379345933,1755259834658,-508.2280244,0.00019573,2]
[379345935,1755259834667,-500.0,0.00019573,2]
[379345937,1755259834677,-500.0,0.00019573,2]
[379345939,1755259834686,-500.0,0.00019573,2]
[379345941,1755259834696,-500.0,0.00019573,2]
[379345943,1755259834705,-500.0,0.00019573,2]
[379345945,1755259834715,-500.0,0.00019573,2]
[379345947,1755259834724,-395.06464608,0.00019573,2]
[379345949,1755259834733,-500.0,0.00019573,2]
[379345950,1755259834743,-500.0,0.00019573,2]
[379345952,1755259834752,-1767.35,0.00019613,3]
[379345954,1755259834761,-460.0,0.00019623,2]
[379345957,1755259834772,-460.0,0.00019623,2]
[379345959,1755259834781,-460.0,0.00019623,2]
[379345961,1755259834790,-460.0,0.00019623,2]
[379345962,1755259834799,-460.0,0.00019623,2]
[379345964,1755259834808,-460.0,0.00019623,2]
[379345966,1755259834819,-204.23,0.00019623,2]
[379345969,1755259834829,-460.0,0.00019623,2]
[379345970,1755259834839,-1069.83,0.00019623,2]
[379345972,1755259834848,-460.0,0.00019627,2]
[379345975,1755259834858,-460.0,0.00019627,2]
[379345977,1755259834868,-460.0,0.00019627,2]
[379345979,1755259834878,-460.0,0.00019627,2]
[379345981,1755259834887,-460.0,0.00019627,2]
[379345983,1755259834896,-460.0,0.00019627,2]
[379345985,1755259834906,-460.0,0.00019627,2]
[379345987,1755259834916,-460.0,0.00019627,2]
[379345988,1755259834925,-460.0,0.00019627,2]
[379345990,1755259834934,-460.0,0.00019627,2]
[379345992,1755259834944,-584.94,0.00019627,2]
[379345994,1755259834953,-167.48,0.00019627,2]
[379345996,1755259834962,-460.0,0.00019627,2]
[379345998,1755259834972,-299.78,0.00019627,2]
[379346000,1755259834981,-431.1,0.00019627,2]
[379346002,1755259834990,-460.0,0.00019627,2]
[379346004,1755259835000,-561.12,0.00019627,2]
[379346006,1755259835010,-460.0,0.00019628,2]
[379346008,1755259835020,-460.0,0.00019628,2]
[379346010,1755259835029,-460.0,0.00019628,2]
[379346012,1755259835038,-460.0,0.00019628,2]
[379346015,1755259835049,-460.0,0.00019628,2]
[379346016,1755259835064,-460.0,0.00019628,2]
[379346018,1755259835073,-460.0,0.00019628,2]
[379346020,1755259835082,-460.0,0.00019628,2]
[379346022,1755259835091,-460.0,0.00019628,2]
[379346024,1755259835101,-464.37699331,0.00019628,2]
[379346027,1755259835111,-460.0,0.00019628,2]
[379346028,1755259835121,-466.61964966,0.00019628,2]
[379346030,1755259835130,-335.23990931,0.00019628,2]
[379346032,1755259835139,-460.0,0.00019628,2]
[379346034,1755259835148,-460.0,0.00019628,2]
[379346036,1755259835157,-469.58,0.00019628,2]
[379346038,1755259835167,-460.0,0.00019628,2]
[379346040,1755259835177,-460.0,0.00019628,2]
[379346042,1755259835186,-463.37954409,0.00019628,2]
[379346044,1755259835195,-464.72883789,0.00019628,2]
[379346046,1755259835204,-460.0,0.00019628,2]
[379346048,1755259835213,-559.67047086,0.00019628,2]
[379346050,1755259835222,-460.0,0.00019628,2]
[379346052,1755259835231,-460.0,0.00019628,2]
[379346054,1755259835241,-470.82653825,0.00019628,2]
[379346056,1755259835250,-503.21546253,0.00019628,2]
[379346058,1755259835259,-460.0,0.00019628,2]
[379346060,1755259835268,-489.45452389,0.00019629,2]
[379346062,1755259835277,-460.0,0.00019629,2]
[379346064,1755259835286,-460.0,0.00019629,2]
[379346066,1755259835295,-460.0,0.00019629,2]
[379346067,1755259835304,-460.0,0.00019629,2]
[379346070,1755259835313,-460.0,0.00019629,2]
[379346072,1755259835323,-2423.95,0.00019629,2]
[379346074,1755259835333,-1040.49,0.00019629,2]
[379346076,1755259835341,-460.0,0.00019629,2]
[379346077,1755259835351,-460.0,0.00019629,2]
[379346079,1755259835360,-460.0,0.0001963,2]
[379346081,1755259835369,-460.0,0.0001963,2]
[379346083,1755259835378,-460.0,0.0001963,2]
[379346085,1755259835387,-460.0,0.0001963,2]
[379346097,1755259835486,-460.0,0.0001963,2]
[379346100,1755259835509,-710.37,0.0001963,2]
[379346102,1755259835519,-466.73522708,0.0001963,2]
[379346104,1755259835528,-460.0,0.0001963,2]
[379346106,1755259835537,-645.62,0.0001963,2]
[379346108,1755259835546,-278.82386494,0.0001963,2]
[379346110,1755259835556,-467.39340147,0.0001963,2]
[379346111,1755259835564,-460.0,0.0001963,2]
[379346113,1755259835574,-460.0,0.0001963,2]
[379346115,1755259835583,-460.0,0.0001963,2]
[379346117,1755259835592,-460.0,0.0001963,2]
[379346119,1755259835601,-460.0,0.00019631,2]
[379346121,1755259835611,-460.0,0.00019631,2]
[379346123,1755259835620,-460.0,0.00019631,2]
[379346125,1755259835629,-530.33841159,0.00019631,2]
[379346127,1755259835639,-460.0,0.00019631,2]
[379346129,1755259835648,-460.0,0.00019633,2]
[379346131,1755259835661,-460.0,0.00019633,2]
[379346133,1755259835671,-464.65828614,0.00019633,2]
[379346135,1755259835680,-460.0,0.00019633,2]
[379346137,1755259835689,-460.0,0.00019633,2]
[379346139,1755259835699,-460.0,0.00019633,2]
[379346141,1755259835708,-340.41750063,0.00019633,2]
[379346143,1755259835717,-500.0,0.00019636,2]
[379346145,1755259835727,-151.0,0.000197,2]
[379346147,1755259835736,-460.0,0.00019726,2]
[379346149,1755259835747,-460.0,0.00019726,2]
[379346151,1755259835756,-460.0,0.00019726,2]
[379346153,1755259835766,-460.0,0.00019726,2]
[379346155,1755259835775,-568.34,0.00019726,2]
[379346157,1755259835784,-460.0,0.00019726,2]
[379346159,1755259835793,-460.0,0.00019726,2]
[379346161,1755259835803,-1000.0,0.00019797,2]
[379346163,1755259835812,-151.0,0.000198,2]
[379346165,1755259835822,-19879.91058159,0.000198,2]
[379346167,1755259835831,-389.48952476,0.00019804,2]
[379346169,1755259835839,-178.325727,0.00019863,2]
[379346171,1755259835849,-251.598672,0.00019873,2]
[379346173,1755259835858,-251.598672,0.00019873,2]
[379346175,1755259835867,-1680.0,0.00019876,2]
[379346177,1755259835877,-460.0,0.00019897,2]
[379346179,1755259835887,-217.21141381,0.00019897,2]
[379346181,1755259835896,-460.0,0.00019897,2]
[379346183,1755259835905,-605.99852067,0.00019897,2]
[379346185,1755259835915,-160.07,0.00019897,2]
[379346187,1755259835924,-460.0,0.00019897,2]
[379346189,1755259835933,-460.0,0.00019897,2]
[379346191,1755259835942,-1069.83,0.00019897,2]
[379346193,1755259835952,-151.0,0.00019899,2]
[379346195,1755259835961,-151.483349,0.00019899,2]